Workbook

Sheet Inicio EC
A23: Descargue la versión Kindle
K32: Miguel Cervantes Jiménez

Sheet Cobb-Douglas EC (hidden)
A1: EQUILIBRIO DEL PRODUCTOR
A3: FUNCIÓN DE PRODUCCIÓN COBB-DOUGLAS
B5: ISOCOSTO
B6: c | C6: w1 | D6: q1 | E6: w2 | F6: q2
B7: 200.0 | C7: 10.0 | D7: 10.0 | E7: 5.0 | F7: ='Oculto EC'!A35 -> 20.0
B8: Inserte los datos correspondientes
B10: PARÁMETROS DEL ISOCOSTO
B11: q2 | C11: b0 | D11: b1 | E11: q1
B12: =C12+(D12*E12) -> 20.0 | C12: =B7/E7 -> 40.0 | D12: =C7/E7*-1 -> (2.0) | E12: =D7 -> 10.0
B14: Máxima cantidad de q1 | D14: =B7/C7 -> 20.0
B15: Máxima cantidad de q2 | D15: =B7/E7 -> 40.0
B16: Precio relativo (<0) | D16: =(C7/E7)*(-1) -> (2.0)
B18: PARÁMETROS DE FUNCIÓN COBB-DOUGLAS
B19: y | C19: A | D19: a | E19: q1* | F19: 1-a | G19: q2*
B20: ='Oculto EC'!F28 -> 28.3 | C20: 2.0 | D20: 0.5 | E20: ='Oculto EC'!E27 -> 10.0 | F20: =1-D20 -> 0.5 | G20: ='Oculto EC'!F27 -> 20.0
B22: ='Oculto EC'!B45 -> 0.000 | C22: ='Oculto EC'!C45 -> -10.000 | D22: ='Oculto EC'!D45 -> -5.000 | E22: ='Oculto EC'!F45 -> Determinante
B23: ='Oculto EC'!B46 -> -10.000 | C23: ='Oculto EC'!C46 -> -0.035 | D23: ='Oculto EC'!D46 -> 0.018 | E23: ='Oculto EC'!F46 -> 3.53553
B24: ='Oculto EC'!B47 -> -5.000 | C24: ='Oculto EC'!C47 -> 0.018 | D24: ='Oculto EC'!D47 -> -0.009 | E24: ='Oculto EC'!F47 -> Máximo
B26: Títulos
B27: Resultados
B28: Insertar datos
B29: Cantidad de equilibrio

Sheet Cobb-DouglasD1 EC (hidden)
A1: EQUILIBRIO DEL PRODUCTOR
A3: FUNCIÓN DE PRODUCCIÓN COBB-DOUGLAS
B5: ISOCOSTO
B6: c | C6: w1 | D6: q1 | E6: w2 | F6: q2
B7: 400.0 | C7: 1.0 | D7: 10.0 | E7: 5.0 | F7: =B7/E7-C7/E7*D7 -> 78.0
B8: Inserte los datos correspondientes
B10: PARÁMETROS DE LA RECTA ISOCOSTO
B11: q2 | C11: b0 | D11: b1 | E11: q1
B12: =C12+D12*E12 -> 78.0 | C12: =B7/E7 -> 80.0 | D12: =C7/E7*-1 -> (0.2) | E12: =D7 -> 10.0
B14: Máxima cantidad de q1 | D14: =B7/C7 -> 400.0
B15: Máxima cantidad de q2 | D15: =B7/E7 -> 80.0
B16: Precio relativo (<0) | D16: =(C7/E7)*(-1) -> (0.2)
B18: PARÁMETROS DE FUNCIÓN COBB-DOUGLAS
B19: y | C19: A | D19: a | E19: q1* | F19: b | G19: q2*
B20: ='Oculto EC'!BP28 -> 7,585,185.2 | C20: 4.0 | D20: 2.0 | E20: ='Oculto EC'!BO27 -> 266.7 | F20: 1.0 | G20: ='Oculto EC'!BP27 -> 26.7
B23: Títulos
B24: Resultados
B25: Insertar datos
B26: Cantidad de equilibrio

Sheet SustPerf EC (hidden)
A1: EQUILIBRIO DEL PRODUCTOR
A3: FACTORES SUSTITUTOS PERFECTOS
B5: ISOCOSTO
B6: c | C6: w1 | D6: q1 | E6: w2 | F6: q2
B7: 300.0 | C7: 3.0 | D7: 6.0 | E7: 6.0 | F7: 7.0
B8: Inserte los datos correspondientes | E8: Rel. 1 a: | F8: 1.0
B10: PARÁMETROS DEL ISOCOSTO
B11: q2 | C11: b0 | D11: b1 | E11: q1
B12: =C12+(D12*E12) -> 47.0 | C12: =B7/E7 -> 50.0 | D12: =C7/E7*-1 -> -0.5 | E12: =D7 -> 6.0
B14: Máxima cantidad de q1 | D14: =B7/C7 -> 100.0
B15: Máxima cantidad de q2 | D15: =B7/(E7*F8) -> 50.0
B16: Precio relativo (<0) | D16: =(C7/E7)*(-1) -> -0.5
B18: PARÁMETROS DE LA CURVA ISOCUANTA
B19: y | C19: q1* | D19: q2*
B20: ='Oculto EC'!BE28 -> 50.0 | C20: ='Oculto EC'!BE31 -> 100.0 | D20: ='Oculto EC'!BE32 -> 0.0
B23: Títulos
B24: Resultados
B25: Insertar datos
B26: Cantidad de equilibrio

Sheet Neutrales EC (hidden)
A1: EQUILIBRIO DEL CONSUMIDOR
A3: NEUTRALES: ÓPTIMO DE ESQUINA
B5: RECTA PRESUPUESTAL
B6: m | C6: p1 | D6: x1 | E6: p2 | F6: x2
B7: 300.0 | C7: 3.0 | D7: 6.0 | E7: 6.0 | F7: 5.0
B8: Inserte los datos correspondientes
B10: PARÁMETROS DE LA RECTA PRESUPUESTAL
B11: x2 | C11: b0 | D11: b1 | E11: x1
B12: 1.0 | C12: =B7/E7 -> 50.0 | D12: =C7/E7*-1 -> -0.5 | E12: 10.0
B14: Máxima cantidad de x1 | D14: =B7/C7 -> 100.0
B15: Máxima cantidad de x2 | D15: =B7/E7 -> 50.0
B16: Precio relativo (<0) | D16: =(C7/E7)*(-1) -> -0.5
B18: PARÁMETROS DE LA CURVA DE INDIFERENCIA
B19: k | C19: x1* | D19: x2*
B20: ='Oculto EC'!AB23 -> 100.0 | C20: ='Oculto EC'!AB23 -> 100.0 | D20: ='Oculto EC'!AE3 -> 0.0
B23: Títulos
B24: Resultados
B25: Insertar datos
B26: Cantidad de equilibrio

Sheet Males EC (hidden)
A1: EQUILIBRIO DEL CONSUMIDOR
A3: MALES: ÓPTIMO DE ESQUINA
B5: RECTA PRESUPUESTAL
B6: m | C6: p1 | D6: x1 | E6: p2 | F6: x2
B7: 300.0 | C7: 3.0 | D7: 5.0 | E7: 6.0 | F7: 5.0
B8: Inserte los datos correspondientes
B10: PARÁMETROS DE LA RECTA PRESUPUESTAL
B11: x2 | C11: b0 | D11: b1 | E11: x1
B12: =C12+(D12*E12) -> 47.5 | C12: =B7/E7 -> 50.0 | D12: =C7/E7*-1 -> -0.5 | E12: =D7 -> 5.0
B14: Máxima canti. de x1 | D14: =B7/C7 -> 100.0
B15: Máxima canti. de x2 | D15: =B7/E7 -> 50.0
B16: Precio relativo (<0) | D16: =(C7/E7)*(-1) -> -0.5
B18: PARÁMETROS DE LA CURVA DE INDIFERENCIA
B19: k | C19: a | D19: x1* | E19: b | F19: x2*
B20: ='Oculto EC'!AJ23 -> 100.0 | C20: 1.0 | D20: ='Oculto EC'!AJ23 -> 100.0 | E20: 1.0 | F20: ='Oculto EC'!AK23 -> 0.0
B23: Títulos
B24: Resultados
B25: Insertar datos
B26: Cantidad de equilibrio

Sheet Regulares EC (hidden)
A1: EQUILIBRIO DEL CONSUMIDOR
A3: PREFERENCIAS POLINOMIALES: ÓPTIMO INTERIOR
B4: RECTA PRESUPUESTARIA
B6: m | C6: p1 | D6: x1 | E6: p2 | F6: x2
B7: 300.0 | C7: 3.0 | D7: 5.0 | E7: 6.0 | F7: 5.0
B8: Inserte los datos correspondientes
B10: PARÁMETROS DE LA RECTA PRESUPUESTAL
B11: x2 | C11: b0 | D11: b1 | E11: x1
B12: =C12+(D12*E12) -> 47.5 | C12: =B7/E7 -> 50.0 | D12: =C7/E7*-1 -> (0.5) | E12: =D7 -> 5.0
B14: Máxima cantidad de x1 | D14: =B7/C7 -> 100.0
B15: Máxima cantidad de x2 | D15: =B7/E7 -> 50.0
B16: Precio relativo (<0) | D16: =(C7/E7)*(-1) -> (0.5)
B18: PARÁMETROS DE LA FUNCIÓN
B19: k | C19: x1* | D19: x2* | E19: a | F19: b
B20: ='Oculto EC'!Q26 -> 1,352.0 | C20: ='Oculto EC'!V13 -> 54.0 | D20: ='Oculto EC'!W13 -> 23.0 | E20: (2.0) | F20: 3.0
B23: Títulos
B24: Resultados
B25: Insertar datos
B26: Cantidad de equilibrio

Sheet CompPerf EC (hidden)
A1: EQUILIBRIO DEL PRODUCTOR
A3: FACTORES COMPLEMENTO PERFECTO
B5: ISOCOSTO
B6: c | C6: w1 | D6: q1 | E6: w2 | F6: q2
B7: 300.0 | C7: 3.0 | D7: 1.0 | E7: 6.0 | F7: 2.0
B8: Inserte los datos correspondientes
B9: Proporción | C9: a | D9: ='Oculto EC'!AT25 -> 1.0 | E9: b | F9: 1.0
B10: PARÁMETROS DEL ISOCOSTO
B11: q2 | C11: b0 | D11: b1 | E11: q1
B12: =C12+(D12*E12) -> 49.5 | C12: =B7/E7 -> 50.0 | D12: =C7/E7*-1 -> -0.5 | E12: =D7 -> 1.0
B14: Máxima cantidad de q1 | D14: =B7/C7*D9 -> 100.0
B15: Máxima cantidad de q2 | D15: =B7/(E7*F9) -> 50.0
B16: Precio relativo (<0) | D16: =(C7/E7)*(-1) -> -0.5
B18: PARÁMETROS DE LA CURVA ISOCUANTA
B19: y | C19: q1* | D19: q2*
B20: =MAX('Oculto EC'!AR23,'Oculto EC'!AS3) -> 100.0 | C20: ='Oculto EC'!AR28 -> 33.3 | D20: ='Oculto EC'!AR29 -> 33.3
B23: Títulos
B24: Resultados
B25: Insertar datos
B26: Cantidad de equilibrio

Sheet Cuasilineal EC (hidden)
A1: EQUILIBRIO DEL CONSUMIDOR
A3: CUASILINEALES
B5: RECTA PRESUPUESTAL
B6: m | C6: p1 | D6: x1 | E6: p2 | F6: x2
B7: 300.0 | C7: 3.0 | D7: 15.0 | E7: 30.0 | F7: ='Oculto EC'!CC26 -> 8.6
B8: Inserte los datos correspondientes
B10: PARÁMETROS DE LA RECTA PRESUPUESTAL
B11: x2 | C11: b0 | D11: b1 | E11: x1
B12: =C12+(D12*E12) -> 8.5 | C12: =B7/E7 -> 10.0 | D12: =C7/E7*-1 -> -0.1 | E12: =D7 -> 15.0
B14: Máxima cantidad de x1 | D14: =B7/C7 -> 100.0
B15: Máxima cantidad de x2 | D15: =B7/E7 -> 10.0
B16: Precio relativo (<0) | D16: =C7/E7*-1 -> -0.1
B18: PARÁMETROS DE LA CURVA DE INDIFERENCIA
B19: v | C19: x1* | D19: x2*
B20: ='Oculto EC'!CD26 -> 11.3 | C20: ='Oculto EC'!CE26 -> 10.0 | D20: ='Oculto EC'!CF26 -> 9.0
B23: Títulos
B24: Resultados
B25: Insertar datos
B26: Cantidad de equilibrio

Sheet Oculto EC (hidden)
A1: COBB-DOUGLAS | C1: Recta Presupuestaria | J1: Curva de Indiferencia | M1: REGULARES | O1: Recta Presupuestaria | V1: Curva de Indiferencia | Y1: NEUTRALES | AB1: Recta Presupuestaria | AD1: Curva de Indiferencia | AG1: MALES | AJ1: Recta Presupuestaria | AL1: Curva de Indiferencia | AO1: COMPLEMENTARIOS PERFECTOS | AR1: Recta Presupuestaria | AT1: Curva de Indiferencia | BC1: SUSTITUTOS PERFECTOS | BF1: Recta Presupuestaria | BH1: Curva de Indiferencia | BK1: COBB-DOUGLAS | BM1: Recta Presupuestaria | BT1: Curva de Indiferencia | BX1: COBB-DOUGLAS | CA1: Recta Presupuestaria | CG1: Curva de Indiferencia | CL1: COBB-DOUGLAS | CO1: Recta Presupuestaria | CU1: Curva de Indiferencia
A2: Unidades | B2: ponderador | C2: x1 | D2: x2 | E2: x1lin | G2: x2lin | I2: Cota | J2: x1 | K2: x2 | M2: Unidades | N2: ponderador | O2: x1 | P2: x2 | Q2: x1lin | S2: x2lin | U2: Cota | V2: x1 | W2: x2 | Y2: Unidades | Z2: ponderador | AB2: x1 | AC2: x2 | AD2: x1lin | AG2: Unidades | AH2: ponderador | AJ2: x1 | AK2: x2 | AL2: x1lin | AO2: Unidades | AP2: ponderador | AR2: x1 | AS2: x2 | AT2: vertice | AU2: x2line | AV2: x1line | AX2: X1Line | AZ2: X2Line | BC2: Unidades | BD2: ponderador | BF2: x1 | BG2: x2 | BH2: x1lin | BI2: sip1>p2 | BK2: Unidades | BL2: ponderador | BM2: x1 | BN2: x2 | BO2: x1lin | BQ2: x2lin | BS2: Cota | BT2: x1 | BU2: x2 | BW2: Unidades | BX2: Unidades | BY2: ponderador | BZ2: ponderador | CA2: x1 | CB2: x2 | CC2: x1lin | CE2: x2lin | CG2: x1 | CH2: x2 | CK2: Unidades | CL2: Unidades | CM2: ponderador | CN2: ponderador | CO2: x1 | CP2: x2 | CQ2: x1lin | CS2: x2lin | CU2: x1 | CV2: x2 | CW2: s1 | CY2: s2
A3: 1 | B3: 0 | C3: =('Cobb-Douglas EC'!$D$14)*B3 -> 0 | D3: ='Cobb-Douglas EC'!$C$12+('Cobb-Douglas EC'!$D$12*'Oculto EC'!C3) -> 40.00 | E3: =$E$27 -> 10 | F3: =$F$27*B3 -> 0 | G3: =$E$27*'Oculto EC'!B3 -> 0 | H3: =$F$27 -> 20 | M3: 1 | N3: 0 | O3: =$P$25/$P$26*N3 -> 0 | P3: =($P$25/$P$27)-(($P$26/$P$27)*O3) -> 50.00 | Q3: =$V$13 -> 54.00 | R3: =T3*N3 -> 0 | S3: =Q3*N3 -> 0 | T3: =$W$13 -> 23.00 | Y3: 1 | Z3: 0 | AA3: 1.00 | AB3: =('Neutrales EC'!$B$7/'Neutrales EC'!$C$7)*Z3 -> 0 | AC3: =('Neutrales EC'!$B$7/'Neutrales EC'!$E$7)*AA3 -> 50.00 | AD3: =MAX($AB$3:$AB$23) -> 100.00 | AE3: =$AC$3*Z3 -> 0 | AG3: 1 | AH3: 0 | AI3: 1.00 | AJ3: =('Males EC'!$B$7/'Males EC'!$C$7)*'Oculto EC'!AH3 -> 0 | AK3: =AI3*('Males EC'!$B$7/'Males EC'!$E$7) -> 50.00 | AL3: =$AJ$23+(('Males EC'!$C$20/'Males EC'!$E$20)*'Oculto EC'!AJ3) -> 100.00 | AM3: 0 | AO3: 1 | AP3: 0 | AQ3: 1.00 | AR3: =($AR$25/$AR$26)*AP3 -> 0 | AS3: =($AR$25/$AR$27)-(($AR$26/$AR$27)*AR3) -> 50.00 | AT3: =MIN($AR$28:$AR$29) -> 33.33 | AU3: =$AR$29+(($AS$3-$AR$29)*AP3) -> 33.33 | AV3: =AT3+(($AR$23-AT3)*AP3) -> 33.33 | AW3: =$AR$29 -> 33.33 | AX3: =$AR$28 -> 33.33 | AY3: =$AR$29*AP3 -> 0 | AZ3: =$AR$28*AP3 -> 0 | BA3: =$AR$29 -> 33.33 | BC3: 1 | BD3: 0 | BE3: 1.00 | BF3: =$BE$26*BD3 -> 0 | BG3: =$BE$27*BE3 -> 50.00 | BH3: =IF($BF$26<=$BG$26,BD37,BF37) -> 0 | BI3: =IF($BF$26<=$BG$26,BE37,BG37) -> 100.00 | BK3: 1 | BL3: 0 | BM3: =$BS$28*BL3 -> 0 | BN3: =$BS$29+($BS$30*BM3) -> 80.00 | BO3: =$BO$27 -> 266.6666667 | BP3: =$BP$27*BL3 -> 0 | BQ3: =$BO$27*BL3 -> 0 | BR3: =$BP$27 -> 26.66666667 | BW3: 0.01 | BX3: 1 | BY3: 1.00 | BZ3: 0 | CA3: =($BY$26/$BZ$26)*BZ3 -> 0 | CB3: =($BY$26/$CB$26)*BY3 -> 10.00 | CC3: =$CE$26 -> 10.0 | CD3: =$CF$26*BZ3 -> 0 | CE3: =$CE$26*BZ3 -> 0 | CF3: =$CF$26 -> 9.0 | CG3: =$CF$26*BW3 -> 0.09 | CH3: =$CD$26-(LN(CG3)) -> 13.71 | CK3: 0.01 | CL3: 1 | CM3: 1.00 | CN3: 0 | CO3: =($CK$33/$CL$33)*CN3 -> 0 | CP3: =$CM$26/$CP$26-$CN$26/$CP$26*CO3 -> 50.00 | CQ3: =$CS$26 -> 60.0 | CR3: =$CT$26*CN3 -> 0 | CS3: =$CS$26*CN3 -> 0 | CT3: =$CT$26 -> 20.0 | CW3: =$CM$48 -> 40.0 | CX3: =$CM$41*CN3 -> 0 | CY3: =$CM$40*CN3 -> 0 | CZ3: =$CO$48 -> 10.0
A4: 2 | B4: 0.05 | C4: =('Cobb-Douglas EC'!$D$14)*B4 -> 1.00 | D4: ='Cobb-Douglas EC'!$C$12+('Cobb-Douglas EC'!$D$12*'Oculto EC'!C4) -> 38.00 | E4: =$E$27 -> 10 | F4: 1.00 | G4: =$E$27*'Oculto EC'!B4 -> 0.50 | H4: =$F$27 -> 20 | I4: 0.28 | M4: 2 | N4: 0.05 | O4: =$P$25/$P$26*N4 -> 5.00 | P4: =($P$25/$P$27)-(($P$26/$P$27)*O4) -> 47.50 | Q4: =$V$13 -> 54.00 | R4: =T4*N4 -> 1.15 | S4: =Q4*N4 -> 2.70 | T4: =$W$13 -> 23.00 | U4: =$U$25 -> 0.1 | V4: =$V$13*U4 -> 5.40 | W4: =($Q$26-($Q$30*V4)-($Q$28*$Q$30))/(V4+$Q$28) -> 394.65 | Y4: 2 | Z4: 0.05 | AA4: 0.95 | AB4: =('Neutrales EC'!$B$7/'Neutrales EC'!$C$7)*Z4 -> 5.00 | AC4: =('Neutrales EC'!$B$7/'Neutrales EC'!$E$7)*AA4 -> 47.50 | AD4: =MAX($AB$3:$AB$23) -> 100.00 | AE4: =$AC$3*Z4 -> 2.50 | AG4: 2 | AH4: 0.05 | AI4: 0.95 | AJ4: =('Males EC'!$B$7/'Males EC'!$C$7)*'Oculto EC'!AH4 -> 5.00 | AK4: =AI4*('Males EC'!$B$7/'Males EC'!$E$7) -> 47.50 | AL4: =$AJ$23+(('Males EC'!$C$20/'Males EC'!$E$20)*'Oculto EC'!AJ4) -> 105.00 | AM4: 1.00 | AO4: 2 | AP4: 0.05 | AQ4: 0.95 | AR4: =($AR$25/$AR$26)*AP4 -> 5.00 | AS4: =($AR$25/$AR$27)-(($AR$26/$AR$27)*AR4) -> 47.50 | AT4: 33.33 | AU4: 34.17 | AV4: =AT4+(($AR$23-AT4)*AP4) -> 36.67 | AW4: =$AR$29 -> 33.33 | AX4: =$AR$28 -> 33.33 | AY4: =$AR$29*AP4 -> 1.67 | AZ4: =$AR$28*AP4 -> 1.67 | BA4: =$AR$29 -> 33.33 | BC4: 2 | BD4: 0.05 | BE4: 0.95 | BF4: =$BE$26*BD4 -> 5.00 | BG4: =$BE$27*BE4 -> 47.50 | BH4: =IF($BF$26<=$BG$26,BD38,BF38) -> 5.00 | BI4: =IF($BF$26<=$BG$26,BE38,BG38) -> 95.00 | BK4: 2 | BL4: 0.05 | BM4: =$BS$28*BL4 -> 20.00 | BN4: =$BS$29+($BS$30*BM4) -> 76.00 | BO4: =$BO$27 -> 266.6666667 | BP4: =$BP$27*BL4 -> 1.33 | BQ4: =$BO$27*BL4 -> 13.33 | BR4: =$BP$27 -> 26.66666667 | BS4: 0.28 | BW4: 0.1 | BX4: 2 | BY4: 0.95 | BZ4: 0.05 | CA4: =($BY$26/$BZ$26)*BZ4 -> 5.00 | CB4: =($BY$26/$CB$26)*BY4 -> 9.50 | CC4: =$CE$26 -> 10.0 | CD4: =$CF$26*BZ4 -> 0.45 | CE4: =$CE$26*BZ4 -> 0.50 | CF4: =$CF$26 -> 9.0 | CG4: =$CF$26*BW4 -> 0.90 | CH4: =$CD$26-(LN(CG4)) -> 11.41 | CK4: 0.1 | CL4: 2 | CM4: 0.95 | CN4: 0.05 | CO4: =($CK$33/$CL$33)*CN4 -> 5.00 | CP4: =$CM$26/$CP$26-$CN$26/$CP$26*CO4 -> 47.50 | CQ4: =$CS$26 -> 60.0 | CR4: =$CT$26*CN4 -> 1.00 | CS4: =$CS$26*CN4 -> 3.00 | CT4: =$CT$26 -> 20.0 | CW4: =$CM$48 -> 40.0 | CX4: =$CM$41*CN4 -> 2.50 | CY4: =$CM$40*CN4 -> 5.00 | CZ4: =$CO$48 -> 10.0
A5: 3 | B5: 0.10 | C5: =('Cobb-Douglas EC'!$D$14)*B5 -> 2.00 | D5: ='Cobb-Douglas EC'!$C$12+('Cobb-Douglas EC'!$D$12*'Oculto EC'!C5) -> 36.00 | E5: 10 | F5: 2.00 | G5: =$E$27*'Oculto EC'!B5 -> 1.00 | H5: 20 | I5: 0.36 | M5: 3 | N5: 0.10 | O5: 10.00 | P5: 45.00 | Q5: 54.00 | R5: 2.30 | S5: 5.40 | T5: 23.00 | U5: =U4+$U$25 -> 0.2 | V5: 10.80 | W5: 150.64 | Y5: 3 | Z5: 0.10 | AA5: 0.90 | AB5: =('Neutrales EC'!$B$7/'Neutrales EC'!$C$7)*Z5 -> 10.00 | AC5: =('Neutrales EC'!$B$7/'Neutrales EC'!$E$7)*AA5 -> 45.00 | AD5: 100.00 | AE5: 5.00 | AG5: 3 | AH5: 0.10 | AI5: 0.90 | AJ5: =('Males EC'!$B$7/'Males EC'!$C$7)*'Oculto EC'!AH5 -> 10.00 | AK5: =AI5*('Males EC'!$B$7/'Males EC'!$E$7) -> 45.00 | AL5: =$AJ$23+(('Males EC'!$C$20/'Males EC'!$E$20)*'Oculto EC'!AJ5) -> 110.00 | AM5: 2.00 | AO5: 3 | AP5: 0.10 | AQ5: 0.90 | AR5: 10.00 | AS5: 45.00 | AT5: 33.33 | AU5: 35.00 | AV5: 40.00 | AW5: 33.33 | AX5: 33.33 | AY5: 3.33 | AZ5: 3.33 | BA5: 33.33 | BC5: 3 | BD5: 0.10 | BE5: 0.90 | BF5: 10.00 | BG5: 45.00 | BH5: 10.00 | BI5: 90.00 | BK5: 3 | BL5: 0.10 | BM5: 40.00 | BN5: 72.00 | BO5: 266.6666667 | BP5: 2.67 | BQ5: 26.67 | BR5: 26.66666667 | BS5: 0.36 | BW5: 0.2 | BX5: 3 | BY5: 0.90 | BZ5: 0.10 | CA5: 10.00 | CB5: 9.00 | CC5: 10.0 | CD5: 0.90 | CE5: 1.00 | CF5: 9.0 | CG5: 1.80 | CH5: 10.71 | CK5: 0.2 | CL5: 3 | CM5: 0.90 | CN5: 0.10 | CO5: 10.00 | CP5: 45.00 | CQ5: 60.0 | CR5: 2.00 | CS5: 6.00 | CT5: 20.0 | CW5: 40.0 | CX5: 5.00 | CY5: 10.00 | CZ5: 10.0
A6: 4 | B6: 0.15 | C6: =('Cobb-Douglas EC'!$D$14)*B6 -> 3.00 | D6: ='Cobb-Douglas EC'!$C$12+('Cobb-Douglas EC'!$D$12*'Oculto EC'!C6) -> 34.00 | E6: 10 | F6: 3.00 | G6: =$E$27*'Oculto EC'!B6 -> 1.50 | H6: 20 | I6: 0.44 | M6: 4 | N6: 0.15 | O6: 15.00 | P6: 42.50 | Q6: 54.00 | R6: 3.45 | S6: 8.10 | T6: 23.00 | U6: =U5+$U$25 -> 0.3 | V6: 16.20 | W6: 92.21 | Y6: 4 | Z6: 0.15 | AA6: 0.85 | AB6: =('Neutrales EC'!$B$7/'Neutrales EC'!$C$7)*Z6 -> 15.00 | AC6: =('Neutrales EC'!$B$7/'Neutrales EC'!$E$7)*AA6 -> 42.50 | AD6: 100.00 | AE6: 7.50 | AG6: 4 | AH6: 0.15 | AI6: 0.85 | AJ6: =('Males EC'!$B$7/'Males EC'!$C$7)*'Oculto EC'!AH6 -> 15.00 | AK6: =AI6*('Males EC'!$B$7/'Males EC'!$E$7) -> 42.50 | AL6: =$AJ$23+(('Males EC'!$C$20/'Males EC'!$E$20)*'Oculto EC'!AJ6) -> 115.00 | AM6: 3.00 | AO6: 4 | AP6: 0.15 | AQ6: 0.85 | AR6: 15.00 | AS6: 42.50 | AT6: 33.33 | AU6: 35.83 | AV6: 43.33 | AW6: 33.33 | AX6: 33.33 | AY6: 5.00 | AZ6: 5.00 | BA6: 33.33 | BC6: 4 | BD6: 0.15 | BE6: 0.85 | BF6: 15.00 | BG6: 42.50 | BH6: 15.00 | BI6: 85.00 | BK6: 4 | BL6: 0.15 | BM6: 60.00 | BN6: 68.00 | BO6: 266.6666667 | BP6: 4.00 | BQ6: 40.00 | BR6: 26.66666667 | BS6: 0.44 | BW6: 0.3 | BX6: 4 | BY6: 0.85 | BZ6: 0.15 | CA6: 15.00 | CB6: 8.50 | CC6: 10.0 | CD6: 1.35 | CE6: 1.50 | CF6: 9.0 | CG6: 2.70 | CH6: 10.31 | CK6: 0.3 | CL6: 4 | CM6: 0.85 | CN6: 0.15 | CO6: 15.00 | CP6: 42.50 | CQ6: 60.0 | CR6: 3.00 | CS6: 9.00 | CT6: 20.0 | CW6: 40.0 | CX6: 7.50 | CY6: 15.00 | CZ6: 10.0
A7: 5 | B7: 0.20 | C7: =('Cobb-Douglas EC'!$D$14)*B7 -> 4.00 | D7: ='Cobb-Douglas EC'!$C$12+('Cobb-Douglas EC'!$D$12*'Oculto EC'!C7) -> 32.00 | E7: 10 | F7: 4.00 | G7: =$E$27*'Oculto EC'!B7 -> 2.00 | H7: 20 | I7: 0.52 | M7: 5 | N7: 0.20 | O7: 20.00 | P7: 40.00 | Q7: 54.00 | R7: 4.60 | S7: 10.80 | T7: 23.00 | U7: 0.4 | V7: 21.60 | W7: 65.98 | Y7: 5 | Z7: 0.20 | AA7: 0.80 | AB7: =('Neutrales EC'!$B$7/'Neutrales EC'!$C$7)*Z7 -> 20.00 | AC7: =('Neutrales EC'!$B$7/'Neutrales EC'!$E$7)*AA7 -> 40.00 | AD7: 100.00 | AE7: 10.00 | AG7: 5 | AH7: 0.20 | AI7: 0.80 | AJ7: =('Males EC'!$B$7/'Males EC'!$C$7)*'Oculto EC'!AH7 -> 20.00 | AK7: =AI7*('Males EC'!$B$7/'Males EC'!$E$7) -> 40.00 | AL7: =$AJ$23+(('Males EC'!$C$20/'Males EC'!$E$20)*'Oculto EC'!AJ7) -> 120.00 | AM7: 4.00 | AO7: 5 | AP7: 0.20 | AQ7: 0.80 | AR7: 20.00 | AS7: 40.00 | AT7: 33.33 | AU7: 36.67 | AV7: 46.67 | AW7: 33.33 | AX7: 33.33 | AY7: 6.67 | AZ7: 6.67 | BA7: 33.33 | BC7: 5 | BD7: 0.20 | BE7: 0.80 | BF7: 20.00 | BG7: 40.00 | BH7: 20.00 | BI7: 80.00 | BK7: 5 | BL7: 0.20 | BM7: 80.00 | BN7: 64.00 | BO7: 266.6666667 | BP7: 5.33 | BQ7: 53.33 | BR7: 26.66666667 | BS7: 0.52 | BW7: 0.4 | BX7: 5 | BY7: 0.80 | BZ7: 0.20 | CA7: 20.00 | CB7: 8.00 | CC7: 10.0 | CD7: 1.80 | CE7: 2.00 | CF7: 9.0 | CG7: 3.60 | CH7: 10.02 | CK7: 0.4 | CL7: 5 | CM7: 0.80 | CN7: 0.20 | CO7: 20.00 | CP7: 40.00 | CQ7: 60.0 | CR7: 4.00 | CS7: 12.00 | CT7: 20.0 | CW7: 40.0 | CX7: 10.00 | CY7: 20.00 | CZ7: 10.0
A8: 6 | B8: 0.25 | C8: =('Cobb-Douglas EC'!$D$14)*B8 -> 5.00 | D8: ='Cobb-Douglas EC'!$C$12+('Cobb-Douglas EC'!$D$12*'Oculto EC'!C8) -> 30.00 | E8: 10 | F8: 5.00 | G8: =$E$27*'Oculto EC'!B8 -> 2.50 | H8: 20 | I8: 0.6 | M8: 6 | N8: 0.25 | O8: 25.00 | P8: 37.50 | Q8: 54.00 | R8: 5.75 | S8: 13.50 | T8: 23.00 | U8: 0.5 | V8: 27.00 | W8: 51.08 | Y8: 6 | Z8: 0.25 | AA8: 0.75 | AB8: =('Neutrales EC'!$B$7/'Neutrales EC'!$C$7)*Z8 -> 25.00 | AC8: =('Neutrales EC'!$B$7/'Neutrales EC'!$E$7)*AA8 -> 37.50 | AD8: 100.00 | AE8: 12.50 | AG8: 6 | AH8: 0.25 | AI8: 0.75 | AJ8: =('Males EC'!$B$7/'Males EC'!$C$7)*'Oculto EC'!AH8 -> 25.00 | AK8: =AI8*('Males EC'!$B$7/'Males EC'!$E$7) -> 37.50 | AL8: =$AJ$23+(('Males EC'!$C$20/'Males EC'!$E$20)*'Oculto EC'!AJ8) -> 125.00 | AM8: 5.00 | AO8: 6 | AP8: 0.25 | AQ8: 0.75 | AR8: 25.00 | AS8: 37.50 | AT8: 33.33 | AU8: 37.50 | AV8: 50.00 | AW8: 33.33 | AX8: 33.33 | AY8: 8.33 | AZ8: 8.33 | BA8: 33.33 | BC8: 6 | BD8: 0.25 | BE8: 0.75 | BF8: 25.00 | BG8: 37.50 | BH8: 25.00 | BI8: 75.00 | BK8: 6 | BL8: 0.25 | BM8: 100.00 | BN8: 60.00 | BO8: 266.6666667 | BP8: 6.67 | BQ8: 66.67 | BR8: 26.66666667 | BS8: 0.6 | BW8: 0.5 | BX8: 6 | BY8: 0.75 | BZ8: 0.25 | CA8: 25.00 | CB8: 7.50 | CC8: 10.0 | CD8: 2.25 | CE8: 2.50 | CF8: 9.0 | CG8: 4.50 | CH8: 9.80 | CK8: 0.5 | CL8: 6 | CM8: 0.75 | CN8: 0.25 | CO8: 25.00 | CP8: 37.50 | CQ8: 60.0 | CR8: 5.00 | CS8: 15.00 | CT8: 20.0 | CW8: 40.0 | CX8: 12.50 | CY8: 25.00 | CZ8: 10.0
A9: 7 | B9: 0.30 | C9: =('Cobb-Douglas EC'!$D$14)*B9 -> 6.00 | D9: ='Cobb-Douglas EC'!$C$12+('Cobb-Douglas EC'!$D$12*'Oculto EC'!C9) -> 28.00 | E9: 10 | F9: 6.00 | G9: =$E$27*'Oculto EC'!B9 -> 3.00 | H9: 20 | I9: 0.68 | M9: 7 | N9: 0.30 | O9: 30.00 | P9: 35.00 | Q9: 54.00 | R9: 6.90 | S9: 16.20 | T9: 23.00 | U9: 0.6 | V9: 32.40 | W9: 41.47 | Y9: 7 | Z9: 0.30 | AA9: 0.70 | AB9: =('Neutrales EC'!$B$7/'Neutrales EC'!$C$7)*Z9 -> 30.00 | AC9: =('Neutrales EC'!$B$7/'Neutrales EC'!$E$7)*AA9 -> 35.00 | AD9: 100.00 | AE9: 15.00 | AG9: 7 | AH9: 0.30 | AI9: 0.70 | AJ9: =('Males EC'!$B$7/'Males EC'!$C$7)*'Oculto EC'!AH9 -> 30.00 | AK9: =AI9*('Males EC'!$B$7/'Males EC'!$E$7) -> 35.00 | AL9: =$AJ$23+(('Males EC'!$C$20/'Males EC'!$E$20)*'Oculto EC'!AJ9) -> 130.00 | AM9: 6.00 | AO9: 7 | AP9: 0.30 | AQ9: 0.70 | AR9: 30.00 | AS9: 35.00 | AT9: 33.33 | AU9: 38.33 | AV9: 53.33 | AW9: 33.33 | AX9: 33.33 | AY9: 10.00 | AZ9: 10.00 | BA9: 33.33 | BC9: 7 | BD9: 0.30 | BE9: 0.70 | BF9: 30.00 | BG9: 35.00 | BH9: 30.00 | BI9: 70.00 | BK9: 7 | BL9: 0.30 | BM9: 120.00 | BN9: 56.00 | BO9: 266.6666667 | BP9: 8.00 | BQ9: 80.00 | BR9: 26.66666667 | BS9: 0.68 | BT9: =$BO$27*BS9 -> 181.33 | BU9: =($BP$28/($BP$29*BT9^($BO$26)))^(1/$BP$26) -> 57.67 | BW9: 0.6 | BX9: 7 | BY9: 0.70 | BZ9: 0.30 | CA9: 30.00 | CB9: 7.00 | CC9: 10.0 | CD9: 2.70 | CE9: 3.00 | CF9: 9.0 | CG9: 5.40 | CH9: 9.62 | CK9: 0.6 | CL9: 7 | CM9: 0.70 | CN9: 0.30 | CO9: 30.00 | CP9: 35.00 | CQ9: 60.0 | CR9: 6.00 | CS9: 18.00 | CT9: 20.0 | CW9: 40.0 | CX9: 15.00 | CY9: 30.00 | CZ9: 10.0
A10: 8 | B10: 0.35 | C10: =('Cobb-Douglas EC'!$D$14)*B10 -> 7.00 | D10: ='Cobb-Douglas EC'!$C$12+('Cobb-Douglas EC'!$D$12*'Oculto EC'!C10) -> 26.00 | E10: 10 | F10: 7.00 | G10: =$E$27*'Oculto EC'!B10 -> 3.50 | H10: 20 | I10: 0.76 | J10: =$E$27*I10 -> 7.60 | K10: =($F$28/($F$43*(J10^($E$26))))^(1/$F$26) -> 26.32 | M10: 8 | N10: 0.35 | O10: 35.00 | P10: 32.50 | Q10: 54.00 | R10: 8.05 | S10: 18.90 | T10: 23.00 | U10: 0.7 | V10: 37.80 | W10: 34.77 | Y10: 8 | Z10: 0.35 | AA10: 0.65 | AB10: =('Neutrales EC'!$B$7/'Neutrales EC'!$C$7)*Z10 -> 35.00 | AC10: =('Neutrales EC'!$B$7/'Neutrales EC'!$E$7)*AA10 -> 32.50 | AD10: 100.00 | AE10: 17.50 | AG10: 8 | AH10: 0.35 | AI10: 0.65 | AJ10: =('Males EC'!$B$7/'Males EC'!$C$7)*'Oculto EC'!AH10 -> 35.00 | AK10: =AI10*('Males EC'!$B$7/'Males EC'!$E$7) -> 32.50 | AL10: =$AJ$23+(('Males EC'!$C$20/'Males EC'!$E$20)*'Oculto EC'!AJ10) -> 135.00 | AM10: 7.00 | AO10: 8 | AP10: 0.35 | AQ10: 0.65 | AR10: 35.00 | AS10: 32.50 | AT10: 33.33 | AU10: 39.17 | AV10: 56.67 | AW10: 33.33 | AX10: 33.33 | AY10: 11.67 | AZ10: 11.67 | BA10: 33.33 | BC10: 8 | BD10: 0.35 | BE10: 0.65 | BF10: 35.00 | BG10: 32.50 | BH10: 35.00 | BI10: 65.00 | BK10: 8 | BL10: 0.35 | BM10: 140.00 | BN10: 52.00 | BO10: 266.6666667 | BP10: 9.33 | BQ10: 93.33 | BR10: 26.66666667 | BS10: 0.76 | BT10: 202.67 | BU10: 46.17 | BW10: 0.7 | BX10: 8 | BY10: 0.65 | BZ10: 0.35 | CA10: 35.00 | CB10: 6.50 | CC10: 10.0 | CD10: 3.15 | CE10: 3.50 | CF10: 9.0 | CG10: 6.30 | CH10: 9.46 | CK10: 0.7 | CL10: 8 | CM10: 0.65 | CN10: 0.35 | CO10: 35.00 | CP10: 32.50 | CQ10: 60.0 | CR10: 7.00 | CS10: 21.00 | CT10: 20.0 | CU10: =$CS$26*CK10+1.5*1 -> 43.50 | CV10: =$CO$48+($CK$46/((CU10-$CM$48)^$CL$46))^(1/$CN$46) -> 67.14 | CW10: 40.0 | CX10: 17.50 | CY10: 35.00 | CZ10: 10.0
A11: 9 | B11: 0.40 | C11: =('Cobb-Douglas EC'!$D$14)*B11 -> 8.00 | D11: ='Cobb-Douglas EC'!$C$12+('Cobb-Douglas EC'!$D$12*'Oculto EC'!C11) -> 24.00 | E11: 10 | F11: 8.00 | G11: =$E$27*'Oculto EC'!B11 -> 4.00 | H11: 20 | I11: 0.84 | J11: 8.40 | K11: 23.81 | M11: 9 | N11: 0.40 | O11: 40.00 | P11: 30.00 | Q11: 54.00 | R11: 9.20 | S11: 21.60 | T11: 23.00 | U11: 0.8 | V11: 43.20 | W11: 29.82 | Y11: 9 | Z11: 0.40 | AA11: 0.60 | AB11: =('Neutrales EC'!$B$7/'Neutrales EC'!$C$7)*Z11 -> 40.00 | AC11: =('Neutrales EC'!$B$7/'Neutrales EC'!$E$7)*AA11 -> 30.00 | AD11: 100.00 | AE11: 20.00 | AG11: 9 | AH11: 0.40 | AI11: 0.60 | AJ11: =('Males EC'!$B$7/'Males EC'!$C$7)*'Oculto EC'!AH11 -> 40.00 | AK11: =AI11*('Males EC'!$B$7/'Males EC'!$E$7) -> 30.00 | AL11: =$AJ$23+(('Males EC'!$C$20/'Males EC'!$E$20)*'Oculto EC'!AJ11) -> 140.00 | AM11: 8.00 | AO11: 9 | AP11: 0.40 | AQ11: 0.60 | AR11: 40.00 | AS11: 30.00 | AT11: 33.33 | AU11: 40.00 | AV11: 60.00 | AW11: 33.33 | AX11: 33.33 | AY11: 13.33 | AZ11: 13.33 | BA11: 33.33 | BC11: 9 | BD11: 0.40 | BE11: 0.60 | BF11: 40.00 | BG11: 30.00 | BH11: 40.00 | BI11: 60.00 | BK11: 9 | BL11: 0.40 | BM11: 160.00 | BN11: 48.00 | BO11: 266.6666667 | BP11: 10.67 | BQ11: 106.67 | BR11: 26.66666667 | BS11: 0.84 | BT11: 224.00 | BU11: 37.79 | BW11: 0.8 | BX11: 9 | BY11: 0.60 | BZ11: 0.40 | CA11: 40.00 | CB11: 6.00 | CC11: 10.0 | CD11: 3.60 | CE11: 4.00 | CF11: 9.0 | CG11: 7.20 | CH11: 9.33 | CK11: 0.8 | CL11: 9 | CM11: 0.60 | CN11: 0.40 | CO11: 40.00 | CP11: 30.00 | CQ11: 60.0 | CR11: 8.00 | CS11: 24.00 | CT11: 20.0 | CU11: =$CS$26*CK11 -> 48.00 | CV11: 35.00 | CW11: 40.0 | CX11: 20.00 | CY11: 40.00 | CZ11: 10.0
A12: 10 | B12: 0.45 | C12: =('Cobb-Douglas EC'!$D$14)*B12 -> 9.00 | D12: ='Cobb-Douglas EC'!$C$12+('Cobb-Douglas EC'!$D$12*'Oculto EC'!C12) -> 22.00 | E12: 10 | F12: 9.00 | G12: =$E$27*'Oculto EC'!B12 -> 4.50 | H12: 20 | I12: 0.92 | J12: 9.20 | K12: 21.74 | M12: 10 | N12: 0.45 | O12: 45.00 | P12: 27.50 | Q12: 54.00 | R12: 10.35 | S12: 24.30 | T12: 23.00 | U12: 0.9 | V12: 48.60 | W12: 26.01 | Y12: 10 | Z12: 0.45 | AA12: 0.55 | AB12: =('Neutrales EC'!$B$7/'Neutrales EC'!$C$7)*Z12 -> 45.00 | AC12: =('Neutrales EC'!$B$7/'Neutrales EC'!$E$7)*AA12 -> 27.50 | AD12: 100.00 | AE12: 22.50 | AG12: 10 | AH12: 0.45 | AI12: 0.55 | AJ12: =('Males EC'!$B$7/'Males EC'!$C$7)*'Oculto EC'!AH12 -> 45.00 | AK12: =AI12*('Males EC'!$B$7/'Males EC'!$E$7) -> 27.50 | AL12: =$AJ$23+(('Males EC'!$C$20/'Males EC'!$E$20)*'Oculto EC'!AJ12) -> 145.00 | AM12: 9.00 | AO12: 10 | AP12: 0.45 | AQ12: 0.55 | AR12: 45.00 | AS12: 27.50 | AT12: 33.33 | AU12: 40.83 | AV12: 63.33 | AW12: 33.33 | AX12: 33.33 | AY12: 15.00 | AZ12: 15.00 | BA12: 33.33 | BC12: 10 | BD12: 0.45 | BE12: 0.55 | BF12: 45.00 | BG12: 27.50 | BH12: 45.00 | BI12: 55.00 | BK12: 10 | BL12: 0.45 | BM12: 180.00 | BN12: 44.00 | BO12: 266.6666667 | BP12: 12.00 | BQ12: 120.00 | BR12: 26.66666667 | BS12: 0.92 | BT12: 245.33 | BU12: 31.51 | BW12: 0.9 | BX12: 10 | BY12: 0.55 | BZ12: 0.45 | CA12: 45.00 | CB12: 5.50 | CC12: 10.0 | CD12: 4.05 | CE12: 4.50 | CF12: 9.0 | CG12: 8.10 | CH12: 9.21 | CK12: 0.9 | CL12: 10 | CM12: 0.55 | CN12: 0.45 | CO12: 45.00 | CP12: 27.50 | CQ12: 60.0 | CR12: 9.00 | CS12: 27.00 | CT12: 20.0 | CU12: 54.00 | CV12: 24.29 | CW12: 40.0 | CX12: 22.50 | CY12: 45.00 | CZ12: 10.0
A13: 11 | B13: 0.50 | C13: =('Cobb-Douglas EC'!$D$14)*B13 -> 10.00 | D13: ='Cobb-Douglas EC'!$C$12+('Cobb-Douglas EC'!$D$12*'Oculto EC'!C13) -> 20.00 | E13: 10 | F13: 10.00 | G13: =$E$27*'Oculto EC'!B13 -> 5.00 | H13: 20 | I13: 1 | J13: =$E$27*I13 -> 10.00 | K13: =($F$28/($F$43*(J13^($E$26))))^(1/$F$26) -> 20.00 | M13: 11 | N13: 0.50 | O13: 50.00 | P13: 25.00 | Q13: 54.00 | R13: 11.50 | S13: 27.00 | T13: 23.00 | U13: 1 | V13: =P28 -> 54.00 | W13: =($Q$26-($Q$30*V13)-($Q$28*$Q$30))/(V13+$Q$28) -> 23.00 | Y13: 11 | Z13: 0.50 | AA13: 0.50 | AB13: =('Neutrales EC'!$B$7/'Neutrales EC'!$C$7)*Z13 -> 50.00 | AC13: =('Neutrales EC'!$B$7/'Neutrales EC'!$E$7)*AA13 -> 25.00 | AD13: 100.00 | AE13: 25.00 | AG13: 11 | AH13: 0.50 | AI13: 0.50 | AJ13: =('Males EC'!$B$7/'Males EC'!$C$7)*'Oculto EC'!AH13 -> 50.00 | AK13: =AI13*('Males EC'!$B$7/'Males EC'!$E$7) -> 25.00 | AL13: =$AJ$23+(('Males EC'!$C$20/'Males EC'!$E$20)*'Oculto EC'!AJ13) -> 150.00 | AM13: 10.00 | AO13: 11 | AP13: 0.50 | AQ13: 0.50 | AR13: 50.00 | AS13: 25.00 | AT13: =MIN($AR$28:$AR$29) -> 33.33 | AU13: 41.67 | AV13: 66.67 | AW13: 33.33 | AX13: 33.33 | AY13: 16.67 | AZ13: 16.67 | BA13: 33.33 | BC13: 11 | BD13: 0.50 | BE13: 0.50 | BF13: 50.00 | BG13: 25.00 | BH13: 50.00 | BI13: 50.00 | BK13: 11 | BL13: 0.50 | BM13: =$BS$28*BL13 -> 200.00 | BN13: 40.00 | BO13: 266.6666667 | BP13: 13.33 | BQ13: 133.33 | BR13: 26.66666667 | BS13: 1 | BT13: 266.67 | BU13: =($BP$28/($BP$29*BT13^($BO$26)))^(1/$BP$26) -> 26.67 | BW13: 1 | BX13: 11 | BY13: 0.50 | BZ13: 0.50 | CA13: 50.00 | CB13: 5.00 | CC13: 10.0 | CD13: 4.50 | CE13: 5.00 | CF13: 9.0 | CG13: =$CF$26*BW13 -> 9.00 | CH13: =$CD$26-(LN(CG13)) -> 9.11 | CK13: 1 | CL13: 11 | CM13: 0.50 | CN13: 0.50 | CO13: 50.00 | CP13: 25.00 | CQ13: 60.0 | CR13: 10.00 | CS13: 30.00 | CT13: 20.0 | CU13: 60.00 | CV13: 20.00 | CW13: 40.0 | CX13: 25.00 | CY13: 50.00 | CZ13: 10.0
A14: 12 | B14: 0.55 | C14: =('Cobb-Douglas EC'!$D$14)*B14 -> 11.00 | D14: ='Cobb-Douglas EC'!$C$12+('Cobb-Douglas EC'!$D$12*'Oculto EC'!C14) -> 18.00 | E14: 10 | F14: 11.00 | G14: =$E$27*'Oculto EC'!B14 -> 5.50 | H14: 20 | I14: 1.08 | J14: =$E$27*I14 -> 10.80 | K14: =($F$28/($F$43*(J14^($E$26))))^(1/$F$26) -> 18.52 | M14: 12 | N14: 0.55 | O14: 55.00 | P14: 22.50 | Q14: 54.00 | R14: 12.65 | S14: 29.70 | T14: 23.00 | U14: =U13+$U$25 -> 1.1 | V14: =$V$13*U14 -> 59.40 | W14: =($Q$26-($Q$30*V14)-($Q$28*$Q$30))/(V14+$Q$28) -> 20.55 | Y14: 12 | Z14: 0.55 | AA14: 0.45 | AB14: =('Neutrales EC'!$B$7/'Neutrales EC'!$C$7)*Z14 -> 55.00 | AC14: =('Neutrales EC'!$B$7/'Neutrales EC'!$E$7)*AA14 -> 22.50 | AD14: 100.00 | AE14: 27.50 | AG14: 12 | AH14: 0.55 | AI14: 0.45 | AJ14: =('Males EC'!$B$7/'Males EC'!$C$7)*'Oculto EC'!AH14 -> 55.00 | AK14: =AI14*('Males EC'!$B$7/'Males EC'!$E$7) -> 22.50 | AL14: =$AJ$23+(('Males EC'!$C$20/'Males EC'!$E$20)*'Oculto EC'!AJ14) -> 155.00 | AM14: 11.00 | AO14: 12 | AP14: 0.55 | AQ14: 0.45 | AR14: 55.00 | AS14: 22.50 | AT14: =MIN($AR$28:$AR$29) -> 33.33 | AU14: 42.50 | AV14: 70.00 | AW14: 33.33 | AX14: 33.33 | AY14: 18.33 | AZ14: 18.33 | BA14: 33.33 | BC14: 12 | BD14: 0.55 | BE14: 0.45 | BF14: 55.00 | BG14: 22.50 | BH14: 55.00 | BI14: 45.00 | BK14: 12 | BL14: 0.55 | BM14: 220.00 | BN14: 36.00 | BO14: 266.6666667 | BP14: 14.67 | BQ14: 146.67 | BR14: 26.66666667 | BS14: 1.08 | BT14: 288.00 | BU14: =($BP$28/($BP$29*BT14^($BO$26)))^(1/$BP$26) -> 22.86 | BW14: 1.1 | BX14: 12 | BY14: 0.45 | BZ14: 0.55 | CA14: 55.00 | CB14: 4.50 | CC14: 10.0 | CD14: 4.95 | CE14: 5.50 | CF14: 9.0 | CG14: =$CF$26*BW14 -> 9.90 | CH14: =$CD$26-(LN(CG14)) -> 9.01 | CK14: 1.1 | CL14: 12 | CM14: 0.45 | CN14: 0.55 | CO14: 55.00 | CP14: 22.50 | CQ14: 60.0 | CR14: 11.00 | CS14: 33.00 | CT14: 20.0 | CU14: 66.00 | CV14: 17.69 | CW14: 40.0 | CX14: 27.50 | CY14: 55.00 | CZ14: 10.0
A15: 13 | B15: 0.60 | C15: =('Cobb-Douglas EC'!$D$14)*B15 -> 12.00 | D15: ='Cobb-Douglas EC'!$C$12+('Cobb-Douglas EC'!$D$12*'Oculto EC'!C15) -> 16.00 | E15: 10 | F15: 12.00 | G15: =$E$27*'Oculto EC'!B15 -> 6.00 | H15: 20 | I15: 1.16 | J15: 11.60 | K15: 17.24 | M15: 13 | N15: 0.60 | O15: 60.00 | P15: 20.00 | Q15: 54.00 | R15: 13.80 | S15: 32.40 | T15: 23.00 | U15: =U14+$U$25 -> 1.2 | V15: =$V$13*U15 -> 64.80 | W15: 18.53 | Y15: 13 | Z15: 0.60 | AA15: 0.40 | AB15: =('Neutrales EC'!$B$7/'Neutrales EC'!$C$7)*Z15 -> 60.00 | AC15: =('Neutrales EC'!$B$7/'Neutrales EC'!$E$7)*AA15 -> 20.00 | AD15: 100.00 | AE15: 30.00 | AG15: 13 | AH15: 0.60 | AI15: 0.40 | AJ15: =('Males EC'!$B$7/'Males EC'!$C$7)*'Oculto EC'!AH15 -> 60.00 | AK15: =AI15*('Males EC'!$B$7/'Males EC'!$E$7) -> 20.00 | AL15: =$AJ$23+(('Males EC'!$C$20/'Males EC'!$E$20)*'Oculto EC'!AJ15) -> 160.00 | AM15: 12.00 | AO15: 13 | AP15: 0.60 | AQ15: 0.40 | AR15: 60.00 | AS15: 20.00 | AT15: 33.33 | AU15: 43.33 | AV15: 73.33 | AW15: 33.33 | AX15: 33.33 | AY15: 20.00 | AZ15: 20.00 | BA15: 33.33 | BC15: 13 | BD15: 0.60 | BE15: 0.40 | BF15: 60.00 | BG15: 20.00 | BH15: 60.00 | BI15: 40.00 | BK15: 13 | BL15: 0.60 | BM15: 240.00 | BN15: 32.00 | BO15: 266.6666667 | BP15: 16.00 | BQ15: 160.00 | BR15: 26.66666667 | BS15: 1.16 | BT15: 309.33 | BU15: 19.82 | BW15: 1.2 | BX15: 13 | BY15: 0.40 | BZ15: 0.60 | CA15: 60.00 | CB15: 4.00 | CC15: 10.0 | CD15: 5.40 | CE15: 6.00 | CF15: 9.0 | CG15: 10.80 | CH15: 8.92 | CK15: 1.2 | CL15: 13 | CM15: 0.40 | CN15: 0.60 | CO15: 60.00 | CP15: 20.00 | CQ15: 60.0 | CR15: 12.00 | CS15: 36.00 | CT15: 20.0 | CU15: 72.00 | CV15: 16.25 | CW15: 40.0 | CX15: 30.00 | CY15: 60.00 | CZ15: 10.0
A16: 14 | B16: 0.65 | C16: =('Cobb-Douglas EC'!$D$14)*B16 -> 13.00 | D16: ='Cobb-Douglas EC'!$C$12+('Cobb-Douglas EC'!$D$12*'Oculto EC'!C16) -> 14.00 | E16: 10 | F16: 13.00 | G16: =$E$27*'Oculto EC'!B16 -> 6.50 | H16: 20 | I16: 1.24 | J16: 12.40 | K16: 16.13 | M16: 14 | N16: 0.65 | O16: 65.00 | P16: 17.50 | Q16: 54.00 | R16: 14.95 | S16: 35.10 | T16: 23.00 | U16: 1.3 | V16: 70.20 | W16: 16.82 | Y16: 14 | Z16: 0.65 | AA16: 0.35 | AB16: =('Neutrales EC'!$B$7/'Neutrales EC'!$C$7)*Z16 -> 65.00 | AC16: =('Neutrales EC'!$B$7/'Neutrales EC'!$E$7)*AA16 -> 17.50 | AD16: 100.00 | AE16: 32.50 | AG16: 14 | AH16: 0.65 | AI16: 0.35 | AJ16: =('Males EC'!$B$7/'Males EC'!$C$7)*'Oculto EC'!AH16 -> 65.00 | AK16: =AI16*('Males EC'!$B$7/'Males EC'!$E$7) -> 17.50 | AL16: =$AJ$23+(('Males EC'!$C$20/'Males EC'!$E$20)*'Oculto EC'!AJ16) -> 165.00 | AM16: 13.00 | AO16: 14 | AP16: 0.65 | AQ16: 0.35 | AR16: 65.00 | AS16: 17.50 | AT16: 33.33 | AU16: 44.17 | AV16: 76.67 | AW16: 33.33 | AX16: 33.33 | AY16: 21.67 | AZ16: 21.67 | BA16: 33.33 | BC16: 14 | BD16: 0.65 | BE16: 0.35 | BF16: 65.00 | BG16: 17.50 | BH16: 65.00 | BI16: 35.00 | BK16: 14 | BL16: 0.65 | BM16: 260.00 | BN16: 28.00 | BO16: 266.6666667 | BP16: 17.33 | BQ16: 173.33 | BR16: 26.66666667 | BS16: 1.24 | BT16: 330.67 | BU16: 17.34 | BW16: 1.3 | BX16: 14 | BY16: 0.35 | BZ16: 0.65 | CA16: 65.00 | CB16: 3.50 | CC16: 10.0 | CD16: 5.85 | CE16: 6.50 | CF16: 9.0 | CG16: 11.70 | CH16: 8.84 | CK16: 1.3 | CL16: 14 | CM16: 0.35 | CN16: 0.65 | CO16: 65.00 | CP16: 17.50 | CQ16: 60.0 | CR16: 13.00 | CS16: 39.00 | CT16: 20.0 | CU16: 78.00 | CV16: 15.26 | CW16: 40.0 | CX16: 32.50 | CY16: 65.00 | CZ16: 10.0
A17: 15 | B17: 0.70 | C17: =('Cobb-Douglas EC'!$D$14)*B17 -> 14.00 | D17: ='Cobb-Douglas EC'!$C$12+('Cobb-Douglas EC'!$D$12*'Oculto EC'!C17) -> 12.00 | E17: 10 | F17: 14.00 | G17: =$E$27*'Oculto EC'!B17 -> 7.00 | H17: 20 | I17: 1.32 | J17: 13.20 | K17: 15.15 | M17: 15 | N17: 0.70 | O17: 70.00 | P17: 15.00 | Q17: 54.00 | R17: 16.10 | S17: 37.80 | T17: 23.00 | U17: 1.4 | V17: 75.60 | W17: 15.37 | Y17: 15 | Z17: 0.70 | AA17: 0.30 | AB17: =('Neutrales EC'!$B$7/'Neutrales EC'!$C$7)*Z17 -> 70.00 | AC17: =('Neutrales EC'!$B$7/'Neutrales EC'!$E$7)*AA17 -> 15.00 | AD17: 100.00 | AE17: 35.00 | AG17: 15 | AH17: 0.70 | AI17: 0.30 | AJ17: =('Males EC'!$B$7/'Males EC'!$C$7)*'Oculto EC'!AH17 -> 70.00 | AK17: =AI17*('Males EC'!$B$7/'Males EC'!$E$7) -> 15.00 | AL17: =$AJ$23+(('Males EC'!$C$20/'Males EC'!$E$20)*'Oculto EC'!AJ17) -> 170.00 | AM17: 14.00 | AO17: 15 | AP17: 0.70 | AQ17: 0.30 | AR17: 70.00 | AS17: 15.00 | AT17: 33.33 | AU17: 45.00 | AV17: 80.00 | AW17: 33.33 | AX17: 33.33 | AY17: 23.33 | AZ17: 23.33 | BA17: 33.33 | BC17: 15 | BD17: 0.70 | BE17: 0.30 | BF17: 70.00 | BG17: 15.00 | BH17: 70.00 | BI17: 30.00 | BK17: 15 | BL17: 0.70 | BM17: 280.00 | BN17: 24.00 | BO17: 266.6666667 | BP17: 18.67 | BQ17: 186.67 | BR17: 26.66666667 | BS17: 1.32 | BT17: 352.00 | BU17: 15.30 | BW17: 1.4 | BX17: 15 | BY17: 0.30 | BZ17: 0.70 | CA17: 70.00 | CB17: 3.00 | CC17: 10.0 | CD17: 6.30 | CE17: 7.00 | CF17: 9.0 | CG17: 12.60 | CH17: 8.77 | CK17: 1.4 | CL17: 15 | CM17: 0.30 | CN17: 0.70 | CO17: 70.00 | CP17: 15.00 | CQ17: 60.0 | CR17: 14.00 | CS17: 42.00 | CT17: 20.0 | CU17: =$CS$26*CK17 -> 84.00 | CV17: 14.55 | CW17: 40.0 | CX17: 35.00 | CY17: 70.00 | CZ17: 10.0
A18: 16 | B18: 0.75 | C18: =('Cobb-Douglas EC'!$D$14)*B18 -> 15.00 | D18: ='Cobb-Douglas EC'!$C$12+('Cobb-Douglas EC'!$D$12*'Oculto EC'!C18) -> 10.00 | E18: 10 | F18: 15.00 | G18: =$E$27*'Oculto EC'!B18 -> 7.50 | H18: 20 | I18: 1.4 | J18: 14.00 | K18: 14.29 | M18: 16 | N18: 0.75 | O18: 75.00 | P18: 12.50 | Q18: 54.00 | R18: 17.25 | S18: 40.50 | T18: 23.00 | U18: 1.5 | V18: 81.00 | W18: 14.11 | Y18: 16 | Z18: 0.75 | AA18: 0.25 | AB18: =('Neutrales EC'!$B$7/'Neutrales EC'!$C$7)*Z18 -> 75.00 | AC18: =('Neutrales EC'!$B$7/'Neutrales EC'!$E$7)*AA18 -> 12.50 | AD18: 100.00 | AE18: 37.50 | AG18: 16 | AH18: 0.75 | AI18: 0.25 | AJ18: =('Males EC'!$B$7/'Males EC'!$C$7)*'Oculto EC'!AH18 -> 75.00 | AK18: =AI18*('Males EC'!$B$7/'Males EC'!$E$7) -> 12.50 | AL18: =$AJ$23+(('Males EC'!$C$20/'Males EC'!$E$20)*'Oculto EC'!AJ18) -> 175.00 | AM18: 15.00 | AO18: 16 | AP18: 0.75 | AQ18: 0.25 | AR18: 75.00 | AS18: 12.50 | AT18: 33.33 | AU18: 45.83 | AV18: 83.33 | AW18: 33.33 | AX18: 33.33 | AY18: 25.00 | AZ18: 25.00 | BA18: 33.33 | BC18: 16 | BD18: 0.75 | BE18: 0.25 | BF18: 75.00 | BG18: 12.50 | BH18: 75.00 | BI18: 25.00 | BK18: 16 | BL18: 0.75 | BM18: 300.00 | BN18: 20.00 | BO18: 266.6666667 | BP18: 20.00 | BQ18: 200.00 | BR18: 26.66666667 | BS18: 1.4 | BT18: 373.33 | BU18: 13.61 | BW18: 1.5 | BX18: 16 | BY18: 0.25 | BZ18: 0.75 | CA18: 75.00 | CB18: 2.50 | CC18: 10.0 | CD18: 6.75 | CE18: 7.50 | CF18: 9.0 | CG18: 13.50 | CH18: 8.70 | CK18: 1.5 | CL18: 16 | CM18: 0.25 | CN18: 0.75 | CO18: 75.00 | CP18: 12.50 | CQ18: 60.0 | CR18: 15.00 | CS18: 45.00 | CT18: 20.0 | CU18: =$CS$26*CK18 -> 90.00 | CV18: 14.00 | CW18: 40.0 | CX18: 37.50 | CY18: 75.00 | CZ18: 10.0
A19: 17 | B19: 0.80 | C19: =('Cobb-Douglas EC'!$D$14)*B19 -> 16.00 | D19: ='Cobb-Douglas EC'!$C$12+('Cobb-Douglas EC'!$D$12*'Oculto EC'!C19) -> 8.00 | E19: 10 | F19: 16.00 | G19: =$E$27*'Oculto EC'!B19 -> 8.00 | H19: 20 | I19: 1.48 | J19: 14.80 | K19: 13.51 | M19: 17 | N19: 0.80 | O19: 80.00 | P19: 10.00 | Q19: 54.00 | R19: 18.40 | S19: 43.20 | T19: 23.00 | U19: 1.6 | V19: 86.40 | W19: 13.02 | Y19: 17 | Z19: 0.80 | AA19: 0.20 | AB19: =('Neutrales EC'!$B$7/'Neutrales EC'!$C$7)*Z19 -> 80.00 | AC19: =('Neutrales EC'!$B$7/'Neutrales EC'!$E$7)*AA19 -> 10.00 | AD19: 100.00 | AE19: 40.00 | AG19: 17 | AH19: 0.80 | AI19: 0.20 | AJ19: =('Males EC'!$B$7/'Males EC'!$C$7)*'Oculto EC'!AH19 -> 80.00 | AK19: =AI19*('Males EC'!$B$7/'Males EC'!$E$7) -> 10.00 | AL19: =$AJ$23+(('Males EC'!$C$20/'Males EC'!$E$20)*'Oculto EC'!AJ19) -> 180.00 | AM19: 16.00 | AO19: 17 | AP19: 0.80 | AQ19: 0.20 | AR19: 80.00 | AS19: 10.00 | AT19: 33.33 | AU19: 46.67 | AV19: 86.67 | AW19: 33.33 | AX19: 33.33 | AY19: 26.67 | AZ19: 26.67 | BA19: 33.33 | BC19: 17 | BD19: 0.80 | BE19: 0.20 | BF19: 80.00 | BG19: 10.00 | BH19: 80.00 | BI19: 20.00 | BK19: 17 | BL19: 0.80 | BM19: 320.00 | BN19: 16.00 | BO19: 266.6666667 | BP19: 21.33 | BQ19: 213.33 | BR19: 26.66666667 | BS19: 1.48 | BT19: 394.67 | BU19: 12.17 | BW19: 1.6 | BX19: 17 | BY19: 0.20 | BZ19: 0.80 | CA19: 80.00 | CB19: 2.00 | CC19: 10.0 | CD19: 7.20 | CE19: 8.00 | CF19: 9.0 | CG19: 14.40 | CH19: 8.64 | CK19: 1.6 | CL19: 17 | CM19: 0.20 | CN19: 0.80 | CO19: 80.00 | CP19: 10.00 | CQ19: 60.0 | CR19: 16.00 | CS19: 48.00 | CT19: 20.0 | CU19: 96.00 | CV19: 13.57 | CW19: 40.0 | CX19: 40.00 | CY19: 80.00 | CZ19: 10.0
A20: 18 | B20: 0.85 | C20: =('Cobb-Douglas EC'!$D$14)*B20 -> 17.00 | D20: ='Cobb-Douglas EC'!$C$12+('Cobb-Douglas EC'!$D$12*'Oculto EC'!C20) -> 6.00 | E20: 10 | F20: 17.00 | G20: =$E$27*'Oculto EC'!B20 -> 8.50 | H20: 20 | I20: 1.56 | J20: 15.60 | K20: 12.82 | M20: 18 | N20: 0.85 | O20: 85.00 | P20: 7.50 | Q20: 54.00 | R20: 19.55 | S20: 45.90 | T20: 23.00 | U20: 1.7 | V20: 91.80 | W20: 12.06 | Y20: 18 | Z20: 0.85 | AA20: 0.15 | AB20: =('Neutrales EC'!$B$7/'Neutrales EC'!$C$7)*Z20 -> 85.00 | AC20: =('Neutrales EC'!$B$7/'Neutrales EC'!$E$7)*AA20 -> 7.50 | AD20: 100.00 | AE20: 42.50 | AG20: 18 | AH20: 0.85 | AI20: 0.15 | AJ20: =('Males EC'!$B$7/'Males EC'!$C$7)*'Oculto EC'!AH20 -> 85.00 | AK20: =AI20*('Males EC'!$B$7/'Males EC'!$E$7) -> 7.50 | AL20: =$AJ$23+(('Males EC'!$C$20/'Males EC'!$E$20)*'Oculto EC'!AJ20) -> 185.00 | AM20: 17.00 | AO20: 18 | AP20: 0.85 | AQ20: 0.15 | AR20: 85.00 | AS20: 7.50 | AT20: 33.33 | AU20: 47.50 | AV20: 90.00 | AW20: 33.33 | AX20: 33.33 | AY20: 28.33 | AZ20: 28.33 | BA20: 33.33 | BC20: 18 | BD20: 0.85 | BE20: 0.15 | BF20: 85.00 | BG20: 7.50 | BH20: 85.00 | BI20: 15.00 | BK20: 18 | BL20: 0.85 | BM20: 340.00 | BN20: 12.00 | BO20: 266.6666667 | BP20: 22.67 | BQ20: 226.67 | BR20: 26.66666667 | BS20: 1.56 | BT20: 416.00 | BU20: 10.96 | BW20: 1.7 | BX20: 18 | BY20: 0.15 | BZ20: 0.85 | CA20: 85.00 | CB20: 1.50 | CC20: 10.0 | CD20: 7.65 | CE20: 8.50 | CF20: 9.0 | CG20: 15.30 | CH20: 8.57 | CK20: 1.7 | CL20: 18 | CM20: 0.15 | CN20: 0.85 | CO20: 85.00 | CP20: 7.50 | CQ20: 60.0 | CR20: 17.00 | CS20: 51.00 | CT20: 20.0 | CU20: 102.00 | CV20: 13.23 | CW20: 40.0 | CX20: 42.50 | CY20: 85.00 | CZ20: 10.0
A21: 19 | B21: 0.90 | C21: =('Cobb-Douglas EC'!$D$14)*B21 -> 18.00 | D21: ='Cobb-Douglas EC'!$C$12+('Cobb-Douglas EC'!$D$12*'Oculto EC'!C21) -> 4.00 | E21: 10 | F21: 18.00 | G21: =$E$27*'Oculto EC'!B21 -> 9.00 | H21: 20 | I21: 1.64 | J21: 16.40 | K21: 12.20 | M21: 19 | N21: 0.90 | O21: 90.00 | P21: 5.00 | Q21: 54.00 | R21: 20.70 | S21: 48.60 | T21: 23.00 | U21: 1.8 | V21: 97.20 | W21: 11.20 | Y21: 19 | Z21: 0.90 | AA21: 0.10 | AB21: =('Neutrales EC'!$B$7/'Neutrales EC'!$C$7)*Z21 -> 90.00 | AC21: =('Neutrales EC'!$B$7/'Neutrales EC'!$E$7)*AA21 -> 5.00 | AD21: 100.00 | AE21: 45.00 | AG21: 19 | AH21: 0.90 | AI21: 0.10 | AJ21: =('Males EC'!$B$7/'Males EC'!$C$7)*'Oculto EC'!AH21 -> 90.00 | AK21: =AI21*('Males EC'!$B$7/'Males EC'!$E$7) -> 5.00 | AL21: =$AJ$23+(('Males EC'!$C$20/'Males EC'!$E$20)*'Oculto EC'!AJ21) -> 190.00 | AM21: 18.00 | AO21: 19 | AP21: 0.90 | AQ21: 0.10 | AR21: 90.00 | AS21: 5.00 | AT21: 33.33 | AU21: 48.33 | AV21: 93.33 | AW21: 33.33 | AX21: 33.33 | AY21: 30.00 | AZ21: 30.00 | BA21: 33.33 | BC21: 19 | BD21: 0.90 | BE21: 0.10 | BF21: 90.00 | BG21: 5.00 | BH21: 90.00 | BI21: 10.00 | BK21: 19 | BL21: 0.90 | BM21: 360.00 | BN21: 8.00 | BO21: 266.6666667 | BP21: 24.00 | BQ21: 240.00 | BR21: 26.66666667 | BS21: 1.64 | BT21: 437.33 | BU21: 9.91 | BW21: 1.8 | BX21: 19 | BY21: 0.10 | BZ21: 0.90 | CA21: 90.00 | CB21: 1.00 | CC21: 10.0 | CD21: 8.10 | CE21: 9.00 | CF21: 9.0 | CG21: 16.20 | CH21: 8.52 | CK21: 1.8 | CL21: 19 | CM21: 0.10 | CN21: 0.90 | CO21: 90.00 | CP21: 5.00 | CQ21: 60.0 | CR21: 18.00 | CS21: 54.00 | CT21: 20.0 | CU21: 108.00 | CV21: 12.94 | CW21: 40.0 | CX21: 45.00 | CY21: 90.00 | CZ21: 10.0
A22: 20 | B22: 0.95 | C22: =('Cobb-Douglas EC'!$D$14)*B22 -> 19.00 | D22: ='Cobb-Douglas EC'!$C$12+('Cobb-Douglas EC'!$D$12*'Oculto EC'!C22) -> 2.00 | E22: 10 | F22: 19.00 | G22: =$E$27*'Oculto EC'!B22 -> 9.50 | H22: 20 | I22: 1.72 | J22: 17.20 | K22: 11.63 | M22: 20 | N22: 0.95 | O22: 95.00 | P22: 2.50 | Q22: 54.00 | R22: 21.85 | S22: 51.30 | T22: 23.00 | U22: 1.9 | V22: 102.60 | W22: 10.44 | Y22: 20 | Z22: 0.95 | AA22: 0.05 | AB22: =('Neutrales EC'!$B$7/'Neutrales EC'!$C$7)*Z22 -> 95.00 | AC22: =('Neutrales EC'!$B$7/'Neutrales EC'!$E$7)*AA22 -> 2.50 | AD22: 100.00 | AE22: 47.50 | AG22: 20 | AH22: 0.95 | AI22: 0.05 | AJ22: =('Males EC'!$B$7/'Males EC'!$C$7)*'Oculto EC'!AH22 -> 95.00 | AK22: =AI22*('Males EC'!$B$7/'Males EC'!$E$7) -> 2.50 | AL22: =$AJ$23+(('Males EC'!$C$20/'Males EC'!$E$20)*'Oculto EC'!AJ22) -> 195.00 | AM22: 19.00 | AO22: 20 | AP22: 0.95 | AQ22: 0.05 | AR22: 95.00 | AS22: 2.50 | AT22: 33.33 | AU22: 49.17 | AV22: 96.67 | AW22: 33.33 | AX22: 33.33 | AY22: 31.67 | AZ22: 31.67 | BA22: 33.33 | BC22: 20 | BD22: 0.95 | BE22: 0.05 | BF22: 95.00 | BG22: 2.50 | BH22: 95.00 | BI22: 5.00 | BK22: 20 | BL22: 0.95 | BM22: 380.00 | BN22: 4.00 | BO22: 266.6666667 | BP22: 25.33 | BQ22: 253.33 | BR22: 26.66666667 | BS22: 1.72 | BT22: 458.67 | BU22: 9.01 | BW22: 1.9 | BX22: 20 | BY22: 0.05 | BZ22: 0.95 | CA22: 95.00 | CB22: 0.50 | CC22: 10.0 | CD22: 8.55 | CE22: 9.50 | CF22: 9.0 | CG22: 17.10 | CH22: 8.46 | CK22: 1.9 | CL22: 20 | CM22: 0.05 | CN22: 0.95 | CO22: 95.00 | CP22: 2.50 | CQ22: 60.0 | CR22: 19.00 | CS22: 57.00 | CT22: 20.0 | CU22: 114.00 | CV22: 12.70 | CW22: 40.0 | CX22: 47.50 | CY22: 95.00 | CZ22: 10.0
A23: 21 | B23: 1.00 | C23: =('Cobb-Douglas EC'!$D$14)*B23 -> 20.00 | D23: ='Cobb-Douglas EC'!$C$12+('Cobb-Douglas EC'!$D$12*'Oculto EC'!C23) -> 0 | E23: 10 | F23: =$F$27*B23 -> 20.00 | G23: =$E$27*'Oculto EC'!B23 -> 10.00 | H23: 20 | I23: 1.8 | J23: 18.00 | K23: 11.11 | M23: 21 | N23: 1.00 | O23: 100.00 | P23: 0 | Q23: 54.00 | R23: 23.00 | S23: 54.00 | T23: 23.00 | U23: 2 | V23: 108.00 | W23: 9.75 | Y23: 21 | Z23: 1.00 | AA23: 0 | AB23: =('Neutrales EC'!$B$7/'Neutrales EC'!$C$7)*Z23 -> 100.00 | AC23: =('Neutrales EC'!$B$7/'Neutrales EC'!$E$7)*AA23 -> 0 | AD23: 100.00 | AE23: 50.00 | AG23: 21 | AH23: 1.00 | AI23: 0 | AJ23: =('Males EC'!$B$7/'Males EC'!$C$7)*'Oculto EC'!AH23 -> 100.00 | AK23: =AI23*('Males EC'!$B$7/'Males EC'!$E$7) -> 0 | AL23: =$AJ$23+(('Males EC'!$C$20/'Males EC'!$E$20)*'Oculto EC'!AJ23) -> 200.00 | AM23: 20.00 | AO23: 21 | AP23: 1.00 | AQ23: 0 | AR23: 100.00 | AS23: 0 | AT23: 33.33 | AU23: 50.00 | AV23: 100.00 | AW23: 33.33 | AX23: 33.33 | AY23: 33.33 | AZ23: 33.33 | BA23: 33.33 | BC23: 21 | BD23: 1.00 | BE23: 0 | BF23: 100.00 | BG23: 0 | BH23: 100.00 | BI23: 0 | BK23: 21 | BL23: 1.00 | BM23: 400.00 | BN23: 0 | BO23: 266.6666667 | BP23: 26.67 | BQ23: 266.67 | BR23: 26.66666667 | BS23: 1.8 | BT23: 480.00 | BU23: 8.23 | BW23: 2 | BX23: 21 | BY23: 0 | BZ23: 1.00 | CA23: 100.00 | CB23: 0 | CC23: 10.0 | CD23: 9.00 | CE23: 10.00 | CF23: 9.0 | CG23: 18.00 | CH23: =$CD$26-(LN(CG23)) -> 8.41 | CK23: 2 | CL23: 21 | CM23: 0 | CN23: 1.00 | CO23: 100.00 | CP23: 0 | CQ23: 60.0 | CR23: 20.00 | CS23: 60.00 | CT23: 20.0 | CU23: =$CS$26*CK23 -> 120.00 | CV23: 12.50 | CW23: 40.0 | CX23: 50.00 | CY23: 100.00 | CZ23: 10.0
E25: x1 | F25: x2 | O25: m | P25: ='Regulares EC'!$B$7 -> 300.00 | Q25: k | U25: =1/10 -> 0.1 | AQ25: m | AR25: ='CompPerf EC'!B7 -> 300 | AS25: a | AT25: 1.0 | BD25: m | BE25: ='SustPerf EC'!B7 -> 300 | BF25: p1<p2 | BO25: x1 | BP25: x2 | BR25: m | BS25: ='Cobb-DouglasD1 EC'!B7 -> 400 | BY25: m | BZ25: p1 | CA25: x1 | CB25: p2 | CC25: x2 | CD25: k | CE25: x1* | CF25: x2* | CM25: m | CN25: p1 | CO25: x1 | CP25: p2 | CQ25: x2 | CR25: k | CS25: x1* | CT25: x2*
E26: ='Cobb-Douglas EC'!D20 -> 0.5 | F26: ='Cobb-Douglas EC'!F20 -> 0.5 | O26: p1 | P26: ='Regulares EC'!C7 -> 3 | Q26: =(P28*P29)+(Q30*P28)+(Q28*P29)+(Q28*Q30) -> 1,352.00 | R26: x1x2 | S26: bx1 | T26: ax2 | U26: ab | AO26: P1 transformado | AP26: =AR26*AT25 -> 3 | AQ26: p1 | AR26: ='CompPerf EC'!C7 -> 3 | AS26: b | AT26: ='CompPerf EC'!F9 -> 1.0 | BD26: X1 | BE26: =BE25/BE29 -> 100.00 | BF26: =BE29 -> 3 | BG26: =BE33*BE30 -> 6 | BN26: alfa | BO26: ='Cobb-DouglasD1 EC'!D20 -> 2 | BP26: ='Cobb-DouglasD1 EC'!F20 -> 1 | BQ26: beta | BR26: p1 | BS26: ='Cobb-DouglasD1 EC'!C7 -> 1 | BY26: ='Cuasilineal EC'!B7 -> 300.0 | BZ26: ='Cuasilineal EC'!C7 -> 3.0 | CA26: ='Cuasilineal EC'!D7 -> 15.0 | CB26: ='Cuasilineal EC'!E7 -> 30.0 | CC26: =$CD$26-(LN(CA26)) -> 8.6 | CD26: =LN(CE26)+CF26 -> 11.3 | CE26: =CB26/BZ26 -> 10.0 | CF26: =(BY26/CB26)-1 -> 9.0 | CM26: =CK33 -> 200.0 | CN26: =CL33 -> 2.0 | CO26: =CM33 -> 40.0 | CP26: =CN33 -> 4.0 | CQ26: =CO33 -> 30.0 | CR26: =CK46 -> 14.1 | CS26: =CM46 -> 60.0 | CT26: =CO46 -> 20.0
E27: ='Cobb-Douglas EC'!D20*('Cobb-Douglas EC'!B7/'Cobb-Douglas EC'!C7) -> 10 | F27: ='Cobb-Douglas EC'!F20*('Cobb-Douglas EC'!B7/'Cobb-Douglas EC'!E7) -> 20 | O27: p2 | P27: ='Regulares EC'!E7 -> 6 | Q27: a | AO27: P2 transformado | AP27: =AR27*AT26 -> 6 | AQ27: p2 | AR27: ='CompPerf EC'!E7 -> 6 | BD27: X2 | BE27: =BE25/BE30 -> 50.00 | BF27: =BE25/BF26 -> 100 | BG27: =BE25/BG26 -> 50 | BN27: equilibrio | BO27: =(BO26/(BO26+BP26))*(BS25/BS26) -> 266.6666667 | BP27: =(BP26/(BO26+BP26))*(BS25/BS27) -> 26.66666667 | BQ27: equilibrio | BR27: p2 | BS27: ='Cobb-DouglasD1 EC'!E7 -> 5 | CS27: =CS26*2 -> 120
E28: v=K | F28: =F43*(E27^(E26))*(F27^(F26)) -> 28.28427125 | O28: x1* | P28: =(P30*(P27))-Q28 -> 54.00 | Q28: ='Regulares EC'!E20 -> -2 | AQ28: x1 | AR28: =(AR25*AT25)/((AR26*AT25)+(AR27*AT26)) -> 33.33333333 | BD28: K | BE28: =BG31 -> 50 | BF28: x1 | BG28: x2 | BP28: =BP29*(BO27^(BO26))*(BP27^(BP26)) -> 7585185.185 | BR28: maxx1 | BS28: =BS25/BS26 -> 400 | BZ28: max X1 | CA28: =BY26/BZ26 -> 100
A29: m | B29: p1 | C29: x1 | D29: p2 | E29: x2 | O29: x2* | P29: =(P30*P26)-Q30 -> 23.00 | Q29: b | AQ29: x2 | AR29: =(AR25*AT26)/((AR26*AT25)+(AR27*AT26)) -> 33.33333333 | BD29: P1 | BE29: ='SustPerf EC'!$C$7 -> 3 | BF29: =BE25/BE29 -> 100 | BG29: =BE25/BE30 -> 50 | BO29: A | BP29: ='Cobb-DouglasD1 EC'!C20 -> 4 | BR29: maxx2 | BS29: =BS25/BS27 -> 80 | BZ29: max X2 | CA29: =BY26/CB26 -> 10
A30: ='Cobb-Douglas EC'!B7 -> 200.0 | B30: ='Cobb-Douglas EC'!C7 -> 10.0 | C30: ='Cobb-Douglas EC'!D7 -> 10.0 | D30: ='Cobb-Douglas EC'!E7 -> 5.0 | E30: =A35 -> 20.0 | O30: lamda | P30: =(P25+(P26*Q28)+(P27*Q30))/(2*(P26*P27)) -> 8.67 | Q30: ='Regulares EC'!F20 -> 3 | BD30: P2 | BE30: ='SustPerf EC'!$E$7 -> 6 | BF30: =BE25/BE29 -> 100 | BG30: =BE25/(BE30*(BE33)) -> 50 | BS30: =BS26/BS27*-1 -> -0.2
A31: =C31+E31 -> 200 | C31: =C30*B30 -> 100 | E31: =E30*D30 -> 100 | BD31: X1* | BE31: =IF(BF26<=BG26,BF23,0) -> 100 | BG31: =IF(BF26<BG26,BG30,BG29) -> 50 | CK31: RECTA PRESUPUESTAL
BD32: X2* | BE32: =IF(BF26>BG26,BG3,0) -> 0 | CK32: m | CL32: p1 | CM32: x1 | CN32: p2 | CO32: x2
A33: PARÁMETROS DE LA RECTA PRESUPUESTAL | BD33: Rel. 1 a: | BE33: ='SustPerf EC'!F8 -> 1.0 | CK33: ='Stone-geary'!B7 -> 200.0 | CL33: ='Stone-geary'!C7 -> 2.0 | CM33: ='Stone-geary'!D7 -> 40.0 | CN33: ='Stone-geary'!E7 -> 4.0 | CO33: =(CK33/CN33)-(CL33/CN33)*CM33 -> 30.0
A34: x2 | B34: b0 | C34: b1 | D34: x1 | BE34: ='SustPerf EC'!F8 -> 1 | CK34: Inserte los datos correspondientes
A35: =B35+(C35*D35) -> 20.0 | B35: =A30/D30 -> 40.0 | C35: =B30/D30*-1 -> (2.0) | D35: =C30 -> 10.0
BD36: sip1<bp2 | BF36: si p1>p2 | CK36: PARÁMETROS DE LA RECTA PRESUPUESTAL
A37: Máxima cantidad de x1 | C37: =A30/B30 -> 20.0 | BD37: =$BF$27*BD3 -> 0 | BE37: =($BF$27*$BE$33)-($BE$33*BD37) -> 100.00 | BF37: =($BG$27)-((1/$BE$33)*BG37) -> 0 | BG37: =$BG$27*BE3*$BE$33 -> 50.00 | CK37: x2 | CL37: b0 | CM37: b1 | CN37: x1
A38: Máxima cantidad de x2 | C38: =A30/D30 -> 40.0 | BD38: 5.00 | BE38: =($BF$27*$BE$33)-($BE$33*BD38) -> 95.00 | BF38: 2.50 | BG38: =$BG$27*BE4*$BE$33 -> 47.50 | CK38: =CL38+(CM38*CN38) -> 30.0 | CL38: =CK33/CN33 -> 50.0 | CM38: =CL33/CN33*-1 -> (0.5) | CN38: =CM33 -> 40.0
A39: Precio relativo (<0) | C39: =(B30/D30)*(-1) -> (2.0) | BD39: 10.00 | BE39: 90.00 | BF39: 5.00 | BG39: 45.00
BD40: 15.00 | BE40: 85.00 | BF40: 7.50 | BG40: 42.50 | CK40: Máxima cantidad de x1 | CM40: =CK33/CL33 -> 100.0
A41: PARÁMETROS DE FUNCIÓN COBB-DOUGLAS | BD41: 20.00 | BE41: 80.00 | BF41: 10.00 | BG41: 40.00 | CK41: Máxima cantidad de x2 | CM41: =CK33/CN33 -> 50.0
A42: k | B42: a | C42: x1* | D42: 1-a | E42: x2* | F42: A | BD42: 25.00 | BE42: 75.00 | BF42: 12.50 | BG42: 37.50 | CK42: Precio relativo (<0) | CM42: =(CL33/CN33)*(-1) -> (0.5)
A43: ='Cobb-Douglas EC'!C20*C43^(B43)*E43^(D43) -> 28.3 | B43: ='Cobb-Douglas EC'!D20 -> 0.5 | C43: =E27 -> 10.0 | D43: =1-B43 -> 0.5 | E43: =F27 -> 20.0 | F43: ='Cobb-Douglas EC'!C20 -> 2 | G43: =C43^(B43)*E43^(D43) -> 14.14213562 | BD43: 30.00 | BE43: 70.00 | BF43: 15.00 | BG43: 35.00
BD44: 35.00 | BE44: 65.00 | BF44: 17.50 | BG44: 32.50 | CK44: PARÁMETROS DE FUNCIÓN COBB-DOUGLAS
A45: determinante | B45: 0 | C45: =-B30 -> (10.0) | D45: =-D30 -> (5.0) | F45: Determinante | BD45: 40.00 | BE45: 60.00 | BF45: 20.00 | BG45: 30.00 | CK45: k=v | CL45: a | CM45: x1* | CN45: 1-a | CO45: x2*
B46: =-B30 -> (10.0) | C46: =(B43-1)*B43*C43^(B43-2)*E43^(D43) -> -0.03535533906 | D46: =(1-B43)*B43*C43^(B43-1)*E43^(-B43) -> 0.01767766953 | F46: =((B45*C46*D47)+(B46*C47*D45)+(B47*C45*D46))-((D45*C46*B47)+(C45*B46*D47)+(B45*D46*C47)) -> 3.535533906 | BD46: 45.00 | BE46: 55.00 | BF46: 22.50 | BG46: 27.50 | CK46: =(CM46-CM48)^CL46*(CO46-CO48)^CN46 -> 14.1 | CL46: ='Stone-geary'!C20 -> 0.5 | CM46: =CM48+(CL46/CL33)*(CK33-CL33*CM48-CN33*CO48) -> 60.0 | CN46: =1-CL46 -> 0.5 | CO46: =CO48+(CN46/CN33)*(CK33-CL33*CM48-CN33*CO48) -> 20.0
B47: =-D30 -> (5.0) | C47: =D46 -> 0.01767766953 | D47: =-(D43)*B43*C43^(B43)*E43^(-1-D43) -> -0.01 | F47: =IF(F46=0,"punto de silla",(IF(F46>0,"Máximo","Mínimo"))) -> Máximo | BD47: 50.00 | BE47: 50.00 | BF47: 25.00 | BG47: 25.00 | CM47: s1 | CO47: s2
BD48: 55.00 | BE48: 45.00 | BF48: 27.50 | BG48: 22.50 | CM48: ='Stone-geary'!D22 -> 40.0 | CO48: ='Stone-geary'!F22 -> 10.0
BD49: 60.00 | BE49: 40.00 | BF49: 30.00 | BG49: 20.00
BD50: 65.00 | BE50: 35.00 | BF50: 32.50 | BG50: 17.50
BD51: 70.00 | BE51: 30.00 | BF51: 35.00 | BG51: 15.00
BD52: 75.00 | BE52: 25.00 | BF52: 37.50 | BG52: 12.50
BD53: 80.00 | BE53: 20.00 | BF53: 40.00 | BG53: 10.00
BD54: 85.00 | BE54: 15.00 | BF54: 42.50 | BG54: 7.50
BD55: 90.00 | BE55: 10.00 | BF55: 45.00 | BG55: 5.00
BD56: 95.00 | BE56: 5.00 | BF56: 47.50 | BG56: 2.50
BD57: 100.00 | BE57: 0 | BF57: =($BG$27)-((1/$BE$33)*BG57) -> 50.00 | BG57: 0

Sheet Stone-geary (hidden)
A1: EQUILIBRIO DEL CONSUMIDOR
A3: PREFERENCIAS STONE-GEARY: ÓPTIMO INTERIOR
B5: RECTA PRESUPUESTAL
B6: m | C6: p1 | D6: x1 | E6: p2 | F6: x2
B7: 200.0 | C7: 2.0 | D7: 40.0 | E7: 4.0 | F7: =B7/E7-C7/E7*D7 -> 30.0
B8: Inserte los datos correspondientes
B10: PARÁMETROS DE LA RECTA PRESUPUESTAL
B11: x2 | C11: b0 | D11: b1 | E11: x1
B12: =C12+(D12*E12) -> 30.0 | C12: =B7/E7 -> 50.0 | D12: =C7/E7*-1 -> (0.5) | E12: =D7 -> 40.0
B13: =C12+(D12*E12) -> 30.0
B14: Máxima cantidad de x1 | D14: =B7/C7 -> 100.0
B15: Máxima cantidad de x2 | D15: =B7/E7 -> 50.0
B16: Precio relativo (<0) | D16: =(C7/E7)*(-1) -> (0.5)
B18: PARÁMETROS DE FUNCIÓN COBB-DOUGLAS
B19: v | C19: a | D19: x1* | E19: 1-a | F19: x2*
B20: ='Oculto EC'!CK46 -> 14.1 | C20: 0.5 | D20: ='Oculto EC'!CM46 -> 60.0 | E20: ='Oculto EC'!CN46 -> 0.5 | F20: ='Oculto EC'!CO46 -> 20.0
D21: s1 | F21: s2
D22: 40.0 | F22: 10.0
B26: Títulos
B27: Resultados
B28: Insertar datos
B29: Cantidad de equilibrio
